bitfinex/quotes_SOLUSD_20250125
["timestamp","ask_amount","ask_price","bid_price","bid_amount"]
[1737821535482,0.03,254.95,254.91,28.09198338]
[1737821537067,0.03,254.95,254.93,23.776884]
[1737821537982,0.03,254.95,254.93,24.16904742]
[1737821538792,14.871606,255.0,254.95,23.776884]
[1737821539188,14.871606,255.0,254.94,13.7286]
[1737821539680,14.871606,255.0,254.87,3.9235]
[1737821539867,14.871606,255.0,254.88,0.39218681]
[1737821540069,14.871606,255.0,254.9,20.0]
[1737821540299,0.03,254.95,254.91,0.39219306]
[1737821540883,0.03,254.95,254.91,24.16907706]
[1737821541184,0.03,254.95,254.88,3.9233]
[1737821541568,0.03,254.95,254.86,10.1345]
[1737821541969,0.03,254.95,254.86,10.52676629]
[1737821542600,0.03,254.95,254.87,23.776884]
[1737821543106,0.03,254.95,254.86,6.2109]
[1737821543680,0.03,254.95,254.85,0.063]
[1737821543998,12.02672143,254.94,254.85,0.063]
[1737821545198,0.03,254.95,254.85,0.063]
[1737821545404,0.03,254.95,254.85,23.839884]
[1737821545606,0.03,254.95,254.88,20.0]
[1737821545784,0.03,254.95,254.89,24.16909613]
[1737821546173,0.03,254.95,254.89,23.776884]
[1737821547206,0.03,254.95,254.91,23.776884]
[1737821548099,0.03,254.95,254.9,3.9231]
[1737821548308,0.03,254.95,254.86,3.9237]
[1737821552118,0.03,254.95,254.87,23.776884]
[1737821554525,0.03,254.95,254.89,23.776884]
[1737821555909,0.03,254.95,254.88,3.9234]
[1737821556421,0.03,254.95,254.9,3.9231]
[1737821557625,0.03,254.95,254.87,3.9235]
[1737821558223,0.03,254.95,254.87,13.7324]
[1737821559605,0.03,254.95,254.85,20.063]
[1737821559606,20.0,254.91,254.85,0.063]
[1737821560006,20.0,254.89,254.85,0.063]
[1737821560621,12.02672143,254.9,254.85,0.063]
[1737821560998,20.0,254.89,254.85,0.063]
[1737821562016,20.0,254.91,254.85,0.063]
[1737821562606,20.0,254.89,254.85,0.063]
[1737821566719,20.0,254.89,254.85,3.9868]
[1737821567730,20.0,254.89,254.85,0.063]
[1737821568229,20.0,254.89,254.85,3.9868]
[1737821568907,5.7,254.91,254.85,3.9868]
[1737821569108,1.6646,254.94,254.85,3.9868]
[1737821569702,0.03,254.95,254.85,3.9868]
[1737821569902,0.03,254.95,254.85,13.7964]
[1737821573134,0.03,254.95,254.89,20.0]
[1737821573307,0.03,254.95,254.9,24.1690982]
[1737821574009,0.03,254.95,254.9,23.776884]
[1737821575015,0.03,254.95,254.91,3.9229]
[1737821575339,0.03,254.95,254.86,3.9237]
[1737821577118,0.03,254.95,254.86,13.733]
[1737821577316,0.03,254.95,254.85,0.063]
[1737821577317,20.03,254.95,254.85,0.063]
[1737821577516,20.03,254.95,254.85,3.9868]
[1737821579631,21.9911,254.95,254.85,3.9868]
[1737821580043,20.03,254.95,254.85,3.9868]
[1737821581618,0.03,254.95,254.85,3.9868]
[1737821582835,0.03,254.95,254.86,6.287]
[1737821583343,0.03,254.95,254.88,23.776884]
[1737821583644,0.03,254.95,254.89,0.39223235]
[1737821583849,0.03,254.95,254.9,3.9231]
[1737821584135,0.03,254.95,254.86,10.2105]
[1737821585646,20.03,254.95,254.86,10.2105]
[1737821586448,0.03,254.95,254.86,20.41214684]
[1737821586948,12.02672143,254.94,254.85,0.063]
[1737821587748,1.9613,254.93,254.85,0.063]
[1737821588321,20.0,254.91,254.85,0.063]
[1737821590353,12.02672143,254.86,254.85,0.063]
[1737821591528,35.80360543,254.86,254.85,0.063]
[1737821592156,65.80360543,254.86,254.85,0.063]
[1737821592458,67.76540543,254.86,254.85,0.063]
[1737821592826,37.76540543,254.86,254.85,0.063]
[1737821593436,13.98852143,254.86,254.85,0.063]
[1737821594449,33.98852143,254.86,254.85,0.063]
[1737821594627,37.76540543,254.86,254.85,0.063]
[1737821595035,12.02672143,254.86,254.85,0.063]
[1737821596358,12.02672143,254.88,254.85,0.063]
[1737821597057,12.02672143,254.86,254.85,0.063]
[1737821598150,13.98852143,254.86,254.85,0.063]
[1737821598644,20.0,254.86,254.85,0.063]
[1737821598847,12.02672143,254.88,254.85,0.063]
[1737821598848,5.7,254.9,254.85,0.063]
[1737821599157,12.02672143,254.93,254.85,3.9868]
[1737821600255,12.05672143,254.95,254.85,3.9868]
[1737821600554,20.0,254.92,254.85,3.9868]
[1737821601540,12.02672143,254.91,254.85,0.063]
[1737821602842,13.98812143,254.91,254.85,0.063]
[1737821603461,12.02672143,254.89,254.85,0.063]
[1737821603665,12.02672143,254.87,254.85,0.063]
[1737821604461,5.7,254.86,254.85,0.063]
[1737821604642,7.6618,254.86,254.85,0.063]
[1737821605741,1.9618,254.86,254.85,0.063]
[1737821605942,25.738684,254.86,254.85,0.063]
[1737821606840,25.738684,254.86,254.76,0.063]
[1737821606841,12.02672143,254.77,254.76,0.063]
[1737821607677,37.34360543,254.77,254.76,0.063]
[1737821607870,49.11360543,254.77,254.76,0.063]
[1737821608170,50.11360543,254.77,254.76,0.0001]
[1737821608347,20.0,254.72,254.67,3.0]
[1737821608669,32.02672143,254.68,254.67,3.0]
[1737821609649,19.25049408,254.68,254.67,3.0]
[1737821611678,20.0,254.68,254.67,3.0]
[1737821613358,39.25049408,254.68,254.67,3.0]
[1737821614383,39.25049408,254.68,254.67,3.063]
[1737821615881,44.95049408,254.68,254.67,3.063]
[1737821617072,63.02737808,254.68,254.67,3.063]
[1737821617270,43.77,254.66,254.63,0.063]
[1737821617462,53.02049408,254.64,254.63,0.0001]
[1737821617778,66.546884,254.62,254.61,0.063]
[1737821617979,85.79737808,254.62,254.61,0.063]
[1737821618277,85.79737808,254.62,254.5,0.063]
[1737821618278,20.0,254.59,254.5,0.063]
[1737821618667,20.0,254.55,254.5,0.063]
[1737821619079,39.25049408,254.55,254.5,0.063]
[1737821619280,63.02737808,254.55,254.5,0.063]
[1737821620864,64.99157808,254.55,254.5,0.063]
[1737821622365,115.24207216,254.55,254.5,0.063]
[1737821622573,128.54537216,254.55,254.5,0.063]
[1737821622962,129.26385369,254.55,254.5,0.063]
[1737821624672,36.546884,254.54,254.53,0.0001]
[1737821624871,37.26536553,254.54,254.53,0.0001]
[1737821625487,41.96536553,254.54,254.53,0.0001]
[1737821625688,42.96536553,254.54,254.53,0.0001]
[1737821625997,41.96536553,254.54,254.53,0.0001]
[1737821626971,42.96536553,254.54,254.53,0.0001]
[1737821627489,41.96536553,254.54,254.53,0.0001]
[1737821627683,42.96536553,254.54,254.53,0.0001]
[1737821627883,37.26536553,254.54,254.53,0.0001]
[1737821628285,36.26536553,254.54,254.53,0.0001]
[1737821628586,105.39536553,254.54,254.53,0.0001]
[1737821628892,124.64585961,254.54,254.53,0.0001]
[1737821629695,141.26894115,254.54,254.53,0.0001]
[1737821630394,37.511384,254.51,254.5,0.0001]
[1737821630579,50.28165334,254.51,254.5,0.0001]
[1737821630889,36.546884,254.42,254.41,0.063]
[1737821631089,23.776884,254.39,254.38,0.063]
[1737821631385,35.82867181,254.39,254.38,0.063]
[1737821632386,37.79407181,254.39,254.38,0.063]
[1737821633089,67.79407181,254.39,254.38,0.063]
[1737821633304,20.0,254.33,254.27,7.9483]
[1737821633588,85.82867181,254.33,254.27,0.063]
[1737821634369,97.59867181,254.33,254.27,0.063]
[1737821634575,99.56457181,254.33,254.27,0.063]
[1737821635185,99.56457181,254.33,254.32,0.0001]
[1737821635492,43.776884,254.28,254.27,0.063]
[1737821635700,55.82867181,254.28,254.27,0.063]
[1737821635885,32.05178781,254.28,254.27,0.063]
[1737821636268,67.88045962,254.28,254.27,0.063]
[1737821636465,57.79497181,254.28,254.27,0.063]
[1737821636672,20.0,254.24,254.23,0.063]
[1737821636874,32.05178781,254.24,254.23,0.063]
[1737821637295,55.82867181,254.24,254.23,0.063]
[1737821637494,23.776884,254.23,254.22,0.063]
[1737821637679,20.0,254.16,254.12,0.063]
[1737821637887,12.05178781,254.13,254.12,0.063]
[1737821638397,1.9678,254.09,254.06,0.03]
[1737821639596,12.05178781,254.08,254.06,0.03]
[1737821639899,1.9678,254.09,254.06,0.03]
[1737821639900,19.34362846,254.07,254.06,0.03]
[1737821640476,21.31152846,254.07,254.06,0.03]
[1737821641090,41.31152846,254.07,254.06,0.03]
[1737821642505,39.34362846,254.07,254.06,0.03]
[1737821642803,5.7,254.12,254.06,0.03]
[1737821643005,19.34362846,254.08,254.06,0.03]
[1737821643375,39.34362846,254.08,254.06,0.03]
[1737821643900,20.0,254.07,254.06,0.03]
[1737821644574,19.34362846,254.08,254.06,0.03]
[1737821644776,19.34362846,254.1,254.06,0.03]
[1737821645003,19.34362846,254.16,254.07,7.8924]
[1737821645250,19.34362846,254.18,254.07,7.8924]
[1737821646296,19.34362846,254.18,254.08,3.9357]
[1737821648603,25.04362846,254.18,254.08,3.9357]
[1737821649096,7.6672,254.17,254.08,3.9357]
[1737821649277,19.34362846,254.16,254.08,3.9357]
[1737821649699,19.34362846,254.2,254.08,13.7751]
[1737821649892,5.7,254.23,254.08,13.7751]
[1737821649893,19.34362846,254.22,254.08,13.7751]
[1737821650092,5.7,254.21,254.08,13.7751]
[1737821650299,5.7,254.21,254.09,24.17037137]
[1737821651704,0.063,254.18,254.11,23.776884]
[1737821652615,0.063,254.18,254.11,24.17030061]
[1737821652901,0.063,254.18,254.11,23.776884]
[1737821654009,0.063,254.18,254.12,3.9351]
[1737821654701,0.063,254.18,254.13,23.776884]
[1737821654888,0.063,254.18,254.12,13.7729]
[1737821655088,0.063,254.18,254.12,3.9351]
[1737821657804,0.063,254.18,254.13,23.776884]
[1737821658886,0.063,254.18,254.14,3.9348]
[1737821659282,0.063,254.18,254.16,6.1502]
[1737821660987,5.7,254.31,254.17,30.64867342]
[1737821661196,123.4,254.33,254.18,23.776884]
[1737821661520,123.4,254.33,254.2,23.776884]
[1737821661521,42.5,254.33,254.2,23.776884]
[1737821661707,42.5,254.33,254.21,0.39324951]
[1737821662207,5.7,254.4,254.25,1.5441]
[1737821662397,1.9653,254.42,254.25,21.5441]
[1737821662905,20.0,254.4,254.26,20.0]
[1737821663081,1.9653,254.42,254.27,0.39319758]
[1737821663283,5.7,254.43,254.27,24.17008158]
[1737821663506,7.6652,254.43,254.27,24.17008158]
[1737821663708,20.0,254.4,254.26,3.9329]
[1737821663889,20.0,254.39,254.26,3.9329]
[1737821665106,1.9655,254.38,254.26,3.9329]
[1737821665813,20.0,254.4,254.27,0.39324726]
[1737821666524,20.0,254.38,254.27,0.39324726]
[1737821666692,20.0,254.38,254.26,27.709784]
[1737821667810,21.9655,254.38,254.26,3.9329]
[1737821668016,20.0,254.34,254.25,1.5441]
[1737821668214,23.776884,254.35,254.25,1.5441]
[1737821668401,20.0,254.32,254.25,1.5441]
[1737821668918,1.9661,254.31,254.25,1.5441]
[1737821671220,20.0,254.32,254.25,1.5441]
[1737821671597,20.0,254.33,254.25,1.5441]
[1737821672305,20.0,254.32,254.25,1.5441]
[1737821673316,20.0,254.32,254.25,5.4772]
[1737821673814,20.0,254.32,254.25,1.5441]
[1737821675115,21.966,254.32,254.25,1.5441]
[1737821675416,21.966,254.32,254.22,6.2822]
[1737821675620,20.0,254.3,254.22,6.2822]
[1737821675924,20.0,254.29,254.19,1.6665]
[1737821676109,25.7,254.28,254.19,1.6665]
[1737821677115,25.7,254.28,254.19,5.6005]
[1737821677321,5.7,254.28,254.2,24.17019637]
[1737821678003,5.7,254.28,254.19,5.6005]
[1737821678520,7.6663,254.28,254.19,5.6005]
[1737821678821,5.7,254.28,254.19,5.6005]
[1737821679616,27.6663,254.28,254.19,1.6665]
[1737821681424,21.9663,254.28,254.19,5.6005]
[1737821682718,21.9663,254.28,254.19,1.6665]
[1737821683034,21.9663,254.28,254.19,5.6005]
[1737821683326,21.9663,254.28,254.19,1.6665]
[1737821686908,0.063,254.33,254.22,1.0]
[1737821687109,0.063,254.33,254.23,24.17009686]
[1737821687525,0.063,254.33,254.21,6.0481]
[1737821687705,0.063,254.33,254.22,0.39325591]
[1737821688923,0.063,254.33,254.23,3.9334]
[1737821689515,0.063,254.33,254.24,1.5364]
[1737821690226,0.063,254.33,254.25,3.9331]
[1737821690829,1.966,254.32,254.24,1.5364]
[1737821692834,1.966,254.32,254.24,5.4696]
[1737821693234,0.063,254.33,254.24,5.4696]
[1737821693427,0.063,254.33,254.29,6.1895]
[1737821693613,0.063,254.33,254.32,43.776884]
[1737821693945,0.063,254.33,254.32,44.16996712]
[1737821694414,0.063,254.33,254.32,48.10196712]
[1737821696608,0.063,254.44,254.37,23.776884]
[1737821696832,0.063,254.44,254.37,24.16994408]
[1737821697442,0.063,254.44,254.38,6.1895]
[1737821697830,0.063,254.44,254.39,24.16990647]
[1737821698144,0.063,254.44,254.41,23.776884]
[1737821698351,0.063,254.44,254.42,0.3929494]
[1737821698641,0.063,254.44,254.43,3.9303]
[1737821698842,0.063,254.44,254.43,23.9303]
[1737821699223,0.063,254.44,254.43,3.9303]
[1737821699436,0.063,254.44,254.43,27.707184]
[1737821700232,0.063,254.54,254.47,26.0358]
[1737821700433,0.063,254.54,254.48,23.776884]
[1737821700725,0.063,254.54,254.49,3.9294]
[1737821701144,0.063,254.54,254.47,26.0358]
[1737821701443,0.063,254.54,254.47,29.9654]
[1737821702447,0.063,254.54,254.51,20.0]
[1737821702623,0.063,254.59,254.54,23.776884]
[1737821702829,0.063,254.59,254.54,24.16963335]
[1737821703023,0.063,254.59,254.57,20.0]
[1737821703926,0.063,254.59,254.58,0.39272621]
[1737821704339,0.063,254.59,254.57,20.0]
[1737821704649,0.063,254.59,254.58,3.928]
[1737821704939,0.063,254.59,254.58,29.9638]
[1737821708132,0.063,254.59,254.58,26.0358]
[1737821711256,0.0001,254.59,254.58,49.812684]
[1737821711749,0.063,254.7,254.66,20.0]
[1737821713228,0.063,254.7,254.67,5.89418418]
[1737821713929,0.063,254.7,254.67,5.5016]
[1737821714129,0.063,254.7,254.61,1.575]
[1737821714530,0.063,254.7,254.62,20.0]
[1737821715028,0.063,254.7,254.63,3.9271]
[1737821715442,0.063,254.7,254.63,4.31973564]
[1737821715947,0.063,254.7,254.63,3.9271]
[1737821716337,0.063,254.7,254.63,4.31977006]
[1737821716651,0.063,254.7,254.63,3.9271]
[1737821717235,0.063,254.7,254.64,0.39261579]
[1737821717946,0.063,254.7,254.66,20.0]
[1737821718247,0.063,254.7,254.69,43.776884]
[1737821718452,0.063,254.7,254.69,51.098684]
[1737821718745,0.0001,254.7,254.69,51.49116032]
[1737821718932,0.03,254.76,254.72,1.0]
[1737821719132,0.063,254.8,254.79,20.0]
[1737821719334,0.063,254.8,254.79,48.09403106]
[1737821720170,0.063,254.8,254.79,4.31714706]
[1737821720450,0.063,254.8,254.79,3.9248]
[1737821723530,0.063,254.8,254.72,0.39240449]
[1737821723736,0.063,254.8,254.71,3.9259]
[1737821723953,2.0253,254.8,254.69,3.9262]
[1737821724954,22.0253,254.8,254.65,3.9269]
[1737821725156,29.476884,254.79,254.63,6.1037]
[1737821725355,29.476884,254.79,254.61,3.9274]
[1737821725534,23.776884,254.77,254.61,3.9274]
[1737821725742,23.776884,254.77,254.57,3.9281]
[1737821725743,23.776884,254.75,254.57,3.9281]
[1737821725967,5.7,254.74,254.57,3.9281]
[1737821726172,5.7,254.74,254.59,20.0]
[1737821726561,5.7,254.74,254.6,20.39266952]
[1737821726746,5.7,254.74,254.61,23.776884]
[1737821726943,5.7,254.74,254.64,20.0]
[1737821727146,0.063,254.8,254.68,20.0]
[1737821727349,0.063,254.8,254.69,0.39254921]
[1737821727565,0.063,254.8,254.76,20.0]
[1737821727747,0.063,254.8,254.77,0.39243129]
[1737821729453,0.063,254.8,254.78,3.9249]
[1737821730241,0.063,254.8,254.79,24.16927232]
[1737821732665,0.063,254.8,254.79,20.39238832]
[1737821732842,0.063,254.8,254.79,20.0]
[1737821733043,0.063,254.8,254.72,3.9258]
[1737821733439,0.063,254.8,254.74,20.0]
[1737821733652,2.0253,254.8,254.67,3.9266]
[1737821733861,7.7253,254.8,254.68,20.39259361]
[1737821734073,5.763,254.8,254.68,0.39259361]
[1737821734676,0.03569331,254.8,254.69,13.7421]
[1737821734878,0.03569331,254.8,254.7,44.1693651]
[1737821735558,0.03569331,254.8,254.77,20.0]
[1737821735783,0.03569331,254.8,254.78,0.39239587]
[1737821736460,0.03569331,254.8,254.7,0.39240274]
[1737821736768,0.03569331,254.8,254.73,23.776884]
[1737821736957,0.03569331,254.8,254.74,0.39242394]
[1737821737561,0.03569331,254.8,254.76,20.0]
[1737821737771,0.03569331,254.8,254.77,0.39239635]
[1737821738465,0.03569331,254.8,254.64,3.9271]
[1737821738653,0.03569331,254.8,254.66,20.0]
[1737821738859,0.03569331,254.8,254.67,23.9266]
[1737821739366,0.03569331,254.8,254.67,3.9266]
[1737821739573,0.03569331,254.8,254.68,24.16942725]
[1737821740569,0.03569331,254.8,254.67,13.7432]
[1737821740570,0.03569331,254.8,254.67,3.9266]
[1737821740750,1.99799331,254.8,254.67,3.9266]
[1737821743671,7.69799331,254.8,254.67,3.9266]
[1737821743975,7.69799331,254.8,254.6,4.9277]
[1737821744178,7.69799331,254.8,254.64,20.0]
[1737821744965,7.69799331,254.8,254.65,3.9269]
[1737821745165,7.69799331,254.8,254.67,0.03]
[1737821748480,20.0,254.77,254.67,0.03]
[1737821748672,7.6112,254.76,254.67,0.03]
[1737821748879,23.776884,254.75,254.67,0.03]
[1737821749404,7.6112,254.76,254.67,0.03]
[1737821750298,9.5738,254.76,254.67,0.03]
[1737821752297,3.4956,254.76,254.67,0.03]
[1737821754765,1.9627,254.74,254.67,0.03]
[1737821755483,5.7,254.75,254.67,0.03]
[1737821755687,7.6627,254.75,254.67,0.03]
[1737821756783,5.7,254.75,254.67,0.03]
[1737821758485,1.533,254.76,254.67,0.03]
[1737821758879,3.4956,254.76,254.67,0.03]
[1737821760664,1.533,254.76,254.67,0.03]
[1737821761788,0.03569331,254.8,254.69,20.0]
[1737821762083,0.03569331,254.8,254.67,0.42258286]
[1737821762084,0.03569331,254.8,254.73,20.0]
[1737821762383,0.03569331,254.8,254.7,0.39244429]
[1737821762884,0.03569331,254.8,254.7,24.16932829]
[1737821763097,0.03569331,254.8,254.74,23.776884]
[1737821763394,0.03569331,254.8,254.77,20.0]
[1737821763567,0.03569331,254.8,254.78,0.39237768]
[1737821763885,9.331e-05,254.8,254.79,5.9248]
[1737821764082,0.03,254.95,254.83,23.776884]
[1737821764277,0.03,254.95,254.9,20.0]
[1737821764480,0.03,254.95,254.91,0.39218308]
[1737821764692,0.03,254.95,254.94,43.776884]
[1737821764869,0.03,254.95,254.94,20.39210673]
[1737821765189,0.03,254.95,254.89,0.39211341]
[1737821765387,0.03,254.95,254.91,20.0]
[1737821765595,0.03,254.95,254.92,0.3921607]
[1737821765888,0.03,254.95,254.92,4.3147607]
[1737821766072,0.03,254.95,254.93,23.776884]
[1737821766391,0.03,254.95,254.94,0.39213096]
[1737821766888,0.03,254.95,254.94,0.39215343]
[1737821767871,0.03,254.95,254.94,4.31455343]
[1737821772781,0.03,254.95,254.94,3.9224]
[1737821773099,0.03,254.95,254.85,1.5343]
[1737821773305,0.03,254.95,254.87,2.0]
[1737821773612,0.03,254.95,254.93,20.0]
[1737821773902,0.59845139,255.0,254.99,23.776884]
[1737821774073,0.063,255.06,255.02,20.0]
[1737821774273,0.063,255.06,254.99,28.09061336]
[1737821774502,0.063,255.06,254.99,4.31372936]
[1737821775418,0.063,255.06,255.02,20.0]
[1737821775705,0.063,255.06,255.02,20.39201534]
[1737821776081,0.063,255.06,255.03,23.9211]
[1737821776698,0.063,255.06,255.03,3.9211]
[1737821779216,0.03,255.11,255.07,20.0]
[1737821779387,70.72053186,255.08,255.07,21.0]
[1737821779582,0.03,255.11,255.09,1.0]
[1737821779776,0.03,255.11,255.1,24.16877131]
[1737821780417,0.0001,255.11,255.1,20.0]
[1737821780917,0.0001,255.11,255.06,1.0]
[1737821781119,0.0001,255.11,255.03,3.9211]
[1737821781791,0.0001,255.11,255.07,20.0]
[1737821782386,0.0001,255.11,255.04,0.3919962]
[1737821782591,0.0001,255.11,255.04,20.0]
[1737821783091,0.0001,255.11,254.98,3.9218]
[1737821783313,0.0001,255.11,254.99,0.39207446]
[1737821783499,0.0001,255.11,254.99,24.16895846]
[1737821784293,0.0001,255.11,254.98,3.9218]
[1737821784502,20.0,255.1,254.98,3.9218]
[1737821784904,0.0001,255.11,254.98,20.0]
[1737821785384,0.0001,255.11,254.99,20.39207324]
[1737821786509,1.96,255.11,254.99,20.0]
[1737821786714,0.0001,255.11,254.99,0.39207539]
[1737821786906,0.0001,255.11,255.0,3.9215]
[1737821787100,0.0001,255.11,255.01,0.39201762]
[1737821788110,0.0001,255.11,255.02,3.9212]
[1737821789612,0.0001,255.11,255.01,20.0]
[1737821789811,0.0001,255.11,255.01,20.39202181]
[1737821790600,0.0001,255.11,255.05,20.0]
[1737821790804,0.0001,255.11,255.06,0.39196158]
[1737821792216,0.0001,255.11,255.07,23.9204]
[1737821792417,0.0001,255.11,255.08,0.39191775]
[1737821793296,0.0001,255.11,255.09,23.9201]
[1737821793519,0.0001,255.11,255.07,3.9204]
[1737821794124,0.0001,255.11,255.08,0.39196955]
[1737821794523,0.0001,255.11,255.08,20.39196955]
[1737821795031,0.0001,255.11,255.08,0.39196955]
[1737821795913,0.0001,255.11,255.09,3.9201]
[1737821797322,0.0001,255.11,255.02,3.9212]
[1737821797729,0.0001,255.11,255.03,0.39202938]
[1737821798101,0.0001,255.11,255.04,20.0]
[1737821798301,0.0001,255.11,255.05,0.39196085]
[1737821799523,0.0001,255.11,255.06,3.9206]
[1737821800604,0.0001,255.11,255.01,3.9214]
[1737821800926,11.98387794,255.1,255.0,3.9515]
[1737821801424,1.5821,255.09,255.0,3.9515]
[1737821801611,11.98387794,255.08,255.0,0.03]
[1737821802302,7.8821,255.09,255.0,0.03]
[1737821802505,7.8821,255.09,255.0,3.9515]
[1737821803008,11.98387794,255.08,255.0,3.9515]
[1737821803221,11.98387794,255.08,255.0,0.03]
[1737821803817,11.98387794,255.06,255.0,0.03]
[1737821804406,11.98387794,255.04,255.0,0.03]
[1737821804609,23.776884,255.03,255.0,0.03]
[1737821804812,13.94447794,255.02,255.0,0.03]
[1737821805614,11.98387794,255.04,255.0,0.03]
[1737821805925,5.7,255.05,255.0,0.03]
[1737821809022,7.8821,255.09,255.0,0.42212525]
[1737821809226,1.5821,255.09,255.0,0.42212525]
[1737821809730,0.0001,255.11,255.0,20.42212525]
[1737821810925,0.0001,255.11,255.01,3.9214]
[1737821811123,0.0001,255.11,255.02,0.39199652]
[1737821813033,0.0001,255.11,255.03,3.9211]
[1737821814163,0.0001,255.11,255.04,24.16890289]
[1737821814429,0.0001,255.11,255.1,20.0]
[1737821814630,0.0001,255.11,255.1,20.39186294]
[1737821815331,0.0001,255.11,255.1,24.31186294]
[1737821816225,0.0001,255.11,255.1,4.31186294]
[1737821818241,0.0001,255.11,255.1,24.31186294]
[1737821819353,0.0001,255.11,255.1,48.08874694]
[1737821820854,0.0001,255.11,255.1,24.31186294]
[1737821821223,0.0001,255.11,255.1,3.92]
[1737821822039,0.0001,255.11,255.07,0.39187223]
[1737821822346,0.0001,255.11,255.02,10.19491054]
[1737821823047,0.0001,255.11,255.03,3.9211]
[1737821823360,11.98387794,255.1,255.03,3.9211]
[1737821824235,0.0001,255.11,255.03,3.9211]
[1737821824236,11.98387794,255.08,255.03,3.9211]
[1737821825051,0.0001,255.11,255.03,3.9211]
[1737821825429,0.0001,255.11,255.0,30.22556406]
[1737821825630,0.0001,255.11,255.01,3.9214]
[1737821825846,0.0001,255.11,255.02,0.3920171]
[1737821826634,0.0001,255.11,255.03,3.9211]
[1737821826837,0.0001,255.11,255.04,0.39200654]
[1737821827250,11.98387794,255.1,255.03,3.9211]
[1737821827951,0.0001,255.11,255.03,3.9211]
[1737821828550,11.98387794,255.08,255.0,0.03]
[1737821828861,0.0001,255.11,255.0,0.03]
[1737821829161,0.0001,255.11,255.01,20.0]
[1737821829352,0.0001,255.11,255.02,0.39199001]
[1737821830633,0.0001,255.11,255.06,20.0]
[1737821830834,0.0001,255.11,255.07,0.39191634]
[1737821831850,0.0001,255.11,255.04,0.3919136]
[1737821832742,0.0001,255.11,255.05,3.9207]
[1737821832950,0.0001,255.11,255.06,0.39196054]
[1737821834757,0.0001,255.11,255.08,20.0]
[1737821834954,0.0001,255.11,255.09,0.39190914]
[1737821835152,0.0001,255.11,255.07,3.9204]
[1737821836691,0.0001,255.11,255.03,20.0]
[1737821836960,0.0001,255.11,255.04,0.39197334]
[1737821837656,11.98387794,255.09,255.01,3.9214]
[1737821838160,11.98387794,255.05,255.0,0.03]
[1737821838940,11.98387794,255.09,255.0,0.03]
[1737821839140,11.98397794,255.11,255.0,0.03]
[1737821839355,0.0001,255.11,255.0,0.03]
[1737821839551,0.0001,255.11,255.0,0.42202223]
[1737821839866,0.0001,255.11,255.01,20.0]
[1737821840072,0.0001,255.11,255.02,0.39197658]
[1737821840867,0.0001,255.11,255.03,13.7238]
[1737821841058,0.0001,255.11,255.04,0.39194568]
[1737821841642,0.0001,255.11,255.07,20.0]
[1737821841857,0.0001,255.11,255.08,0.39189775]
[1737821842059,0.0001,255.11,255.08,24.16878175]
[1737821842251,0.0001,255.11,255.1,20.0]
[1737821842461,0.0001,255.11,255.1,20.39182217]
[1737821842973,0.0001,255.11,255.1,48.08870617]
[1737821843175,0.063,255.21,255.17,20.0]
[1737821843349,0.063,255.21,255.17,0.39174563]